[Event "Late-Titled-Tuesday-Blitz-April-23-2024"]
[Site "Chess.com"]
[Date "2024.04.23"]
[Round "1"]
[White "ElCoachRene"]
[Black "Attacker_2006"]
[Result "0-1"]
[WhiteElo "1975"]
[BlackElo "2555"]
[TimeControl "180+1"]
[EndTime "14:05:43 PDT"]
[Termination "Attacker_2006 won by resignation"]

1. Nf3 {[%clk 0:02:58.6]} 1... d5 {[%clk 0:02:57.7]} 2. d4 {[%clk 0:02:58.2]}
2... Nf6 {[%clk 0:02:55.8]} 3. Bf4 {[%clk 0:02:58.6]} 3... e6 {[%clk 0:02:53.7]}
4. e3 {[%clk 0:02:59.1]} 4... Bd6 {[%clk 0:02:41.1]} 5. Bg3 {[%clk 0:02:59.1]}
5... O-O {[%clk 0:02:40.8]} 6. Nbd2 {[%clk 0:02:59.2]} 6... c5 {[%clk
0:02:40.9]} 7. c3 {[%clk 0:02:58.3]} 7... Qc7 {[%clk 0:02:41.3]} 8. Ne5 {[%clk
0:02:56.6]} 8... Nc6 {[%clk 0:02:38.8]} 9. f4 {[%clk 0:02:55.9]} 9... Ne7 {[%clk
0:02:31]} 10. Bd3 {[%clk 0:02:54.8]} 10... Nf5 {[%clk 0:02:31]} 11. Bf2 {[%clk
0:02:50.8]} 11... Be7 {[%clk 0:02:31.5]} 12. O-O {[%clk 0:02:49.3]} 12... Nd6
{[%clk 0:02:18.5]} 13. Qf3 {[%clk 0:02:44.7]} 13... b6 {[%clk 0:02:14.8]} 14.
Bh4 {[%clk 0:02:43.2]} 14... Bb7 {[%clk 0:01:57.1]} 15. Bxf6 {[%clk 0:02:41.5]}
15... Bxf6 {[%clk 0:01:56.5]} 16. g4 {[%clk 0:02:36.6]} 16... g6 {[%clk
0:01:43]} 17. g5 {[%clk 0:02:35.1]} 17... Bg7 {[%clk 0:01:41.7]} 18. h4 {[%clk
0:02:33.4]} 18... f6 {[%clk 0:01:40.6]} 19. Ng4 {[%clk 0:02:24.1]} 19... fxg5
{[%clk 0:01:36.7]} 20. hxg5 {[%clk 0:02:23.1]} 20... Nf5 {[%clk 0:01:35.4]} 21.
Qh3 {[%clk 0:02:16.8]} 21... cxd4 {[%clk 0:01:34.3]} 22. exd4 {[%clk 0:02:14.7]}
22... Nxd4 {[%clk 0:01:31.3]} 23. cxd4 {[%clk 0:02:06]} 23... Bxd4+ {[%clk
0:01:31]} 24. Kh2 {[%clk 0:02:03.7]} 24... Rxf4 {[%clk 0:01:30.6]} 25. Qg3
{[%clk 0:01:50.1]} 25... Raf8 {[%clk 0:01:16.9]} 26. Nf6+ {[%clk 0:01:22.8]}
26... Bxf6 {[%clk 0:01:01.4]} 27. Rxf4 {[%clk 0:01:06.4]} 27... Be5 {[%clk
0:00:59.8]} 28. Rxf8+ {[%clk 0:00:50.8]} 28... Kxf8 {[%clk 0:01:00.7]} 29. Rf1+
{[%clk 0:00:49.6]} 29... Kg8 {[%clk 0:00:59.1]} 30. Kg2 {[%clk 0:00:38]} 30...
Bxg3 {[%clk 0:00:58]} 0-1

[Event "Late-Titled-Tuesday-Blitz-April-23-2024"]
[Site "Chess.com"]
[Date "2024.04.23"]
[Round "1"]
[White "ahkashefi2800"]
[Black "contrerasfiorella"]
[Result "1-0"]
[WhiteElo "2600"]
[BlackElo "2204"]
[TimeControl "180+1"]
[EndTime "14:05:48 PDT"]
[Termination "ahkashefi2800 won on time"]

1. d4 {[%clk 0:02:53.5]} 1... d5 {[%clk 0:02:47.5]} 2. c4 {[%clk 0:02:08]} 2...
e6 {[%clk 0:02:39.2]} 3. cxd5 {[%clk 0:02:06.2]} 3... exd5 {[%clk 0:02:39]} 4.
Nc3 {[%clk 0:02:07.1]} 4... h6 {[%clk 0:02:38.1]} 5. Qc2 {[%clk 0:02:03]} 5...
Nf6 {[%clk 0:02:37.5]} 6. Bf4 {[%clk 0:01:59.9]} 6... Bd6 {[%clk 0:02:27]} 7.
Bg3 {[%clk 0:01:55.3]} 7... O-O {[%clk 0:02:19.8]} 8. e3 {[%clk 0:01:53.8]} 8...
Nc6 {[%clk 0:01:55.3]} 9. a3 {[%clk 0:01:52.5]} 9... Bxg3 {[%clk 0:01:53.4]} 10.
hxg3 {[%clk 0:01:51.1]} 10... Ne7 {[%clk 0:01:50.6]} 11. Bd3 {[%clk 0:01:49.5]}
11... Be6 {[%clk 0:01:43.1]} 12. Nf3 {[%clk 0:01:48]} 12... Rc8 {[%clk
0:01:39.4]} 13. Ne2 {[%clk 0:01:46.6]} 13... Qd6 {[%clk 0:01:21.5]} 14. Rc1
{[%clk 0:01:41.5]} 14... c6 {[%clk 0:00:18.9]} 15. b4 {[%clk 0:01:36.7]} 15...
a6 {[%clk 0:00:18.1]} 16. Nf4 {[%clk 0:01:36]} 16... Bg4 {[%clk 0:00:15.4]} 17.
Ne5 {[%clk 0:01:34.3]} 17... Rce8 {[%clk 0:00:13.7]} 18. Qc5 {[%clk 0:01:33.7]}
18... Qxc5 {[%clk 0:00:12.5]} 19. bxc5 {[%clk 0:01:33.4]} 19... Bf5 {[%clk
0:00:10.5]} 20. Rb1 {[%clk 0:01:30.1]} 20... Bxd3 {[%clk 0:00:08.5]} 21. Nfxd3
{[%clk 0:01:29.8]} 21... Rb8 {[%clk 0:00:08.5]} 22. O-O {[%clk 0:01:27.5]} 22...
Rfd8 {[%clk 0:00:07.2]} 23. Rb6 {[%clk 0:01:25.2]} 23... Ne4 {[%clk 0:00:03.4]}
24. Rfb1 {[%clk 0:01:23.9]} 24... f6 {[%clk 0:00:01.8]} 25. Rxb7 {[%clk
0:01:21.5]} 1-0

[Event "Late-Titled-Tuesday-Blitz-April-23-2024"]
[Site "Chess.com"]
[Date "2024.04.23"]
[Round "1"]
[White "colegiodemadrid"]
[Black "GMBenjaminBok"]
[Result "0-1"]
[WhiteElo "2528"]
[BlackElo "3041"]
[TimeControl "180+1"]
[EndTime "14:05:49 PDT"]
[Termination "GMBenjaminBok won by resignation"]

1. e4 {[%clk 0:03:00.9]} 1... c5 {[%clk 0:02:59.9]} 2. Nf3 {[%clk 0:03:00.8]}
2... d6 {[%clk 0:03:00.4]} 3. d4 {[%clk 0:03:01.2]} 3... cxd4 {[%clk 0:03:01.3]}
4. Nxd4 {[%clk 0:03:01.8]} 4... Nf6 {[%clk 0:03:01.8]} 5. Nc3 {[%clk 0:03:02.4]}
5... a6 {[%clk 0:03:02.4]} 6. Bg5 {[%clk 0:03:02.7]} 6... Nbd7 {[%clk
0:03:02.2]} 7. f4 {[%clk 0:03:03]} 7... Qc7 {[%clk 0:03:02.3]} 8. Qf3 {[%clk
0:03:03.5]} 8... b5 {[%clk 0:03:02.6]} 9. O-O-O {[%clk 0:03:00.1]} 9... Bb7
{[%clk 0:03:02.9]} 10. Nd5 {[%clk 0:03:00]} 10... Nxd5 {[%clk 0:03:00.2]} 11.
exd5 {[%clk 0:03:00.9]} 11... Nb6 {[%clk 0:02:54.3]} 12. Bd3 {[%clk 0:02:53.9]}
12... Bxd5 {[%clk 0:02:24.4]} 13. Be4 {[%clk 0:02:53.7]} 13... Bxe4 {[%clk
0:02:23.1]} 14. Qxe4 {[%clk 0:02:54.6]} 14... d5 {[%clk 0:02:22.9]} 15. Qe3
{[%clk 0:02:49.7]} 15... h6 {[%clk 0:02:05.8]} 16. Bh4 {[%clk 0:02:46.4]} 16...
Nc4 {[%clk 0:01:44]} 17. Qf3 {[%clk 0:02:45.9]} 17... e6 {[%clk 0:01:05.7]} 18.
Rhe1 {[%clk 0:02:45]} 18... Bc5 {[%clk 0:00:53]} 19. Nxe6 {[%clk 0:02:31.5]}
19... fxe6 {[%clk 0:00:51.8]} 20. Rxe6+ {[%clk 0:02:31]} 20... Kf8 {[%clk
0:00:47.6]} 21. Qxd5 {[%clk 0:02:24.1]} 21... Rc8 {[%clk 0:00:36.2]} 22. Qf5+
{[%clk 0:02:08.6]} 22... Kg8 {[%clk 0:00:35.4]} 23. Re5 {[%clk 0:01:47.2]} 23...
Nxe5 {[%clk 0:00:31.5]} 24. fxe5 {[%clk 0:01:44.5]} 24... Rf8 {[%clk 0:00:30]}
25. Qe6+ {[%clk 0:01:41.5]} 25... Qf7 {[%clk 0:00:30]} 26. Qc6 {[%clk
0:01:40.7]} 26... Qf4+ {[%clk 0:00:27.4]} 27. Kb1 {[%clk 0:01:40.7]} 27... Qxh4
{[%clk 0:00:27.9]} 28. Qd5+ {[%clk 0:01:18.2]} 28... Kh7 {[%clk 0:00:28.1]} 29.
Qxc5 {[%clk 0:01:14.5]} 29... Qg4 {[%clk 0:00:26.7]} 30. Re1 {[%clk 0:01:11.4]}
30... Qxg2 {[%clk 0:00:24]} 31. e6 {[%clk 0:01:09.2]} 31... Rf1 {[%clk
0:00:22.4]} 32. Qf5+ {[%clk 0:01:07.8]} 32... Rxf5 {[%clk 0:00:21.9]} 0-1

[Event "Late-Titled-Tuesday-Blitz-April-23-2024"]
[Site "Chess.com"]
[Date "2024.04.23"]
[Round "1"]
[White "staz_staz"]
[Black "AljoschaFeuerstack"]
[Result "0-1"]
[WhiteElo "2304"]
[BlackElo "2628"]
[TimeControl "180+1"]
[EndTime "14:05:49 PDT"]
[Termination "AljoschaFeuerstack won by resignation"]

1. d4 {[%clk 0:03:00.9]} 1... d5 {[%clk 0:02:59.2]} 2. c4 {[%clk 0:02:57.9]}
2... c6 {[%clk 0:02:59.4]} 3. Nf3 {[%clk 0:02:56.5]} 3... Nf6 {[%clk 0:02:59.4]}
4. Nc3 {[%clk 0:02:54.7]} 4... g6 {[%clk 0:02:58.5]} 5. cxd5 {[%clk 0:02:52.6]}
5... cxd5 {[%clk 0:02:59.4]} 6. Qb3 {[%clk 0:02:52.2]} 6... Bg7 {[%clk
0:02:58.7]} 7. h3 {[%clk 0:02:50.6]} 7... O-O {[%clk 0:02:57.9]} 8. e3 {[%clk
0:02:51.1]} 8... Nc6 {[%clk 0:02:55.7]} 9. Be2 {[%clk 0:02:50.6]} 9... Na5
{[%clk 0:02:36.3]} 10. Qc2 {[%clk 0:02:48.1]} 10... Bf5 {[%clk 0:02:35]} 11. Qa4
{[%clk 0:02:41.6]} 11... Rc8 {[%clk 0:02:31.6]} 12. O-O {[%clk 0:02:40.8]} 12...
a6 {[%clk 0:02:29.4]} 13. Bd2 {[%clk 0:02:40.1]} 13... Nc4 {[%clk 0:02:14.1]}
14. Qb3 {[%clk 0:02:30.7]} 14... b5 {[%clk 0:02:09.7]} 15. Rac1 {[%clk
0:02:29.1]} 15... Ne4 {[%clk 0:01:53.1]} 16. Rfd1 {[%clk 0:02:22.4]} 16... Qd7
{[%clk 0:01:36.5]} 17. Be1 {[%clk 0:02:20.7]} 17... Rfd8 {[%clk 0:01:24.1]} 18.
a3 {[%clk 0:02:02.9]} 18... Bf8 {[%clk 0:01:19.3]} 19. Na2 {[%clk 0:02:02.3]}
19... a5 {[%clk 0:01:15.6]} 20. Nc3 {[%clk 0:01:59.6]} 20... Rb8 {[%clk
0:00:41.4]} 21. Nh4 {[%clk 0:01:54.7]} 21... b4 {[%clk 0:00:36.5]} 22. Nxf5
{[%clk 0:01:35.2]} 22... bxc3 {[%clk 0:00:33.7]} 23. Qxb8 {[%clk 0:00:54.3]}
23... Rxb8 {[%clk 0:00:32.8]} 24. Bxc4 {[%clk 0:00:48.6]} 24... cxb2 {[%clk
0:00:32.5]} 25. Rb1 {[%clk 0:00:47.9]} 25... dxc4 {[%clk 0:00:32.7]} 0-1

[Event "Late-Titled-Tuesday-Blitz-April-23-2024"]
[Site "Chess.com"]
[Date "2024.04.23"]
[Round "1"]
[White "Zampronha1971"]
[Black "amiralfio"]
[Result "1/2-1/2"]
[WhiteElo "2446"]
[BlackElo "2745"]
[TimeControl "180+1"]
[EndTime "14:05:52 PDT"]
[Termination "Game drawn by agreement"]

1. e4 {[%clk 0:03:00.9]} 1... c6 {[%clk 0:02:59.1]} 2. d4 {[%clk 0:03:00]} 2...
e6 {[%clk 0:02:59]} 3. Nf3 {[%clk 0:02:57.1]} 3... Be7 {[%clk 0:02:56.3]} 4. Nc3
{[%clk 0:02:57.1]} 4... d5 {[%clk 0:02:56]} 5. Bd3 {[%clk 0:02:57.2]} 5... Nf6
{[%clk 0:02:55.7]} 6. O-O {[%clk 0:02:56.4]} 6... O-O {[%clk 0:02:55.6]} 7. Re1
{[%clk 0:02:56.3]} 7... dxe4 {[%clk 0:02:55]} 8. Nxe4 {[%clk 0:02:55.6]} 8...
Nbd7 {[%clk 0:02:55.5]} 9. c3 {[%clk 0:02:54.5]} 9... Nxe4 {[%clk 0:02:55.2]}
10. Bxe4 {[%clk 0:02:55.4]} 10... Nf6 {[%clk 0:02:55.5]} 11. Bc2 {[%clk
0:02:54.6]} 11... c5 {[%clk 0:02:54.8]} 12. Bg5 {[%clk 0:02:51.6]} 12... cxd4
{[%clk 0:02:55.1]} 13. Nxd4 {[%clk 0:02:48.4]} 13... Bd7 {[%clk 0:02:54.7]} 14.
Qd3 {[%clk 0:02:45.9]} 14... g6 {[%clk 0:02:53.8]} 15. Qf3 {[%clk 0:02:40.8]}
15... Kg7 {[%clk 0:02:22.9]} 16. Rad1 {[%clk 0:02:37.2]} 16... h6 {[%clk
0:02:11.8]} 17. Bxf6+ {[%clk 0:01:59]} 17... Bxf6 {[%clk 0:02:12.7]} 18. Qxb7
{[%clk 0:01:59.2]} 18... Qc8 {[%clk 0:01:58.9]} 19. Qxd7 {[%clk 0:01:45.7]}
19... Qxd7 {[%clk 0:01:55.2]} 20. Nf5+ {[%clk 0:01:45.2]} 20... gxf5 {[%clk
0:01:40]} 21. Rxd7 {[%clk 0:01:46.1]} 21... Rfd8 {[%clk 0:01:40]} 22. Red1
{[%clk 0:01:45]} 22... Rxd7 {[%clk 0:01:40.2]} 23. Rxd7 {[%clk 0:01:45.9]} 23...
Rd8 {[%clk 0:01:40.8]} 24. Rxd8 {[%clk 0:01:35.1]} 24... Bxd8 {[%clk 0:01:41.7]}
25. Kf1 {[%clk 0:01:34.3]} 25... Kf6 {[%clk 0:01:41.5]} 26. Ke2 {[%clk
0:01:33.6]} 26... Ke5 {[%clk 0:01:41.4]} 27. g3 {[%clk 0:01:31.1]} 27... f4
{[%clk 0:01:38.6]} 28. Bh7 {[%clk 0:01:26.7]} 28... fxg3 {[%clk 0:01:36.3]} 29.
hxg3 {[%clk 0:01:25.8]} 29... Bb6 {[%clk 0:01:36.2]} 30. f4+ {[%clk 0:01:23.6]}
30... Kf6 {[%clk 0:01:24.5]} 31. Kf3 {[%clk 0:01:22]} 31... Kg7 {[%clk
0:01:24.2]} 32. Bd3 {[%clk 0:01:21.1]} 32... f5 {[%clk 0:01:24.5]} 33. b4 {[%clk
0:01:13.9]} 33... Kf6 {[%clk 0:01:24.7]} 34. c4 {[%clk 0:01:10.7]} 34... Bd4
{[%clk 0:01:24.1]} 35. a4 {[%clk 0:01:07.5]} 35... e5 {[%clk 0:01:24.4]} 36.
fxe5+ {[%clk 0:01:06.8]} 36... Bxe5 {[%clk 0:01:19.6]} 37. c5 {[%clk 0:01:04.4]}
37... Bc3 {[%clk 0:01:12.6]} 38. b5 {[%clk 0:01:04.1]} 38... Bd4 {[%clk
0:01:06.3]} 39. c6 {[%clk 0:01:04.2]} 39... Bb6 {[%clk 0:01:06]} 1/2-1/2

[Event "Late-Titled-Tuesday-Blitz-April-23-2024"]
[Site "Chess.com"]
[Date "2024.04.23"]
[Round "1"]
[White "chessisveryfun1264"]
[Black "Indefatigable11"]
[Result "1-0"]
[WhiteElo "2702"]
[BlackElo "2398"]
[TimeControl "180+1"]
[EndTime "14:05:54 PDT"]
[Termination "chessisveryfun1264 won on time"]

1. d4 {[%clk 0:03:00.9]} 1... Nf6 {[%clk 0:02:56.9]} 2. Nf3 {[%clk 0:03:01.5]}
2... d5 {[%clk 0:02:56.8]} 3. Bf4 {[%clk 0:03:01.9]} 3... c5 {[%clk 0:02:56.5]}
4. e3 {[%clk 0:03:02.4]} 4... Nc6 {[%clk 0:02:55.2]} 5. Nbd2 {[%clk 0:03:02.9]}
5... cxd4 {[%clk 0:02:55.1]} 6. exd4 {[%clk 0:03:02.6]} 6... Bf5 {[%clk
0:02:55.2]} 7. c3 {[%clk 0:03:03.2]} 7... e6 {[%clk 0:02:55.5]} 8. Qb3 {[%clk
0:03:03.6]} 8... Bd6 {[%clk 0:02:44.4]} 9. Bg3 {[%clk 0:02:55.7]} 9... Qc7
{[%clk 0:02:12.9]} 10. Bb5 {[%clk 0:02:52]} 10... O-O {[%clk 0:02:10.8]} 11.
Bxd6 {[%clk 0:02:49.1]} 11... Qxd6 {[%clk 0:02:10.7]} 12. h3 {[%clk 0:02:49.5]}
12... a6 {[%clk 0:02:08.4]} 13. Be2 {[%clk 0:02:50.1]} 13... b5 {[%clk
0:02:08.7]} 14. Nh4 {[%clk 0:02:50.2]} 14... Bg6 {[%clk 0:02:08]} 15. Nxg6
{[%clk 0:02:50.3]} 15... hxg6 {[%clk 0:02:08.6]} 16. O-O {[%clk 0:02:48.6]}
16... Na5 {[%clk 0:02:08.1]} 17. Qc2 {[%clk 0:02:47.6]} 17... Rac8 {[%clk
0:02:07.7]} 18. Qd3 {[%clk 0:02:39.3]} 18... Nc4 {[%clk 0:01:59.3]} 19. Nxc4
{[%clk 0:02:39.2]} 19... bxc4 {[%clk 0:01:58.1]} 20. Qd2 {[%clk 0:02:37.2]}
20... Ne4 {[%clk 0:01:56.9]} 21. Qe3 {[%clk 0:02:37.9]} 21... Rb8 {[%clk
0:01:55.9]} 22. Rfb1 {[%clk 0:02:33]} 22... Rb6 {[%clk 0:01:46.5]} 23. Bxc4
{[%clk 0:02:33.4]} 23... Nxf2 {[%clk 0:01:35.1]} 24. Bxa6 {[%clk 0:02:32.7]}
24... Nxh3+ {[%clk 0:01:35.3]} 25. Qxh3 {[%clk 0:02:32.9]} 25... Rxa6 {[%clk
0:01:35.6]} 26. a4 {[%clk 0:02:32.9]} 26... Rfa8 {[%clk 0:01:33.7]} 27. b3
{[%clk 0:02:31.1]} 27... Rb8 {[%clk 0:01:30.3]} 28. b4 {[%clk 0:02:28.7]} 28...
Qd7 {[%clk 0:01:23]} 29. b5 {[%clk 0:02:26.8]} 29... Ra5 {[%clk 0:01:21.3]} 30.
Rb4 {[%clk 0:02:24]} 30... Rc8 {[%clk 0:01:10.4]} 31. Ra3 {[%clk 0:02:23.2]}
31... Qd6 {[%clk 0:01:06.7]} 32. Qe3 {[%clk 0:02:17.3]} 32... Ra7 {[%clk
0:01:03.2]} 33. a5 {[%clk 0:02:12.5]} 33... Rb8 {[%clk 0:00:38]} 34. b6 {[%clk
0:02:10.5]} 34... Raa8 {[%clk 0:00:18]} 35. Raa4 {[%clk 0:02:03]} 35... Qc6
{[%clk 0:00:08.2]} 36. Qd2 {[%clk 0:01:59.6]} 36... Ra6 {[%clk 0:00:07]} 37. Qb2
{[%clk 0:01:55.2]} 37... Qb7 {[%clk 0:00:07.1]} 38. Rb5 {[%clk 0:01:55]} 38...
Rba8 {[%clk 0:00:07.5]} 39. Rc5 {[%clk 0:01:54.7]} 39... Rc8 {[%clk 0:00:07]}
40. c4 {[%clk 0:01:51.6]} 40... Rxc5 {[%clk 0:00:02.8]} 41. dxc5 {[%clk
0:01:52.5]} 41... dxc4 {[%clk 0:00:03.3]} 42. c6 {[%clk 0:01:52.3]} 42... Qb8
{[%clk 0:00:02.3]} 43. b7 {[%clk 0:01:53.2]} 43... Rxc6 {[%clk 0:00:02]} 44. a6
{[%clk 0:01:53.6]} 44... Rc8 {[%clk 0:00:01.1]} 45. a7 {[%clk 0:01:52.5]} 1-0

[Event "Late-Titled-Tuesday-Blitz-April-23-2024"]
[Site "Chess.com"]
[Date "2024.04.23"]
[Round "1"]
[White "jlf287"]
[Black "jefferyx"]
[Result "0-1"]
[WhiteElo "2540"]
[BlackElo "3107"]
[TimeControl "180+1"]
[EndTime "14:05:59 PDT"]
[Termination "jefferyx won by resignation"]

1. d4 {[%clk 0:03:00.9]} 1... Nf6 {[%clk 0:02:59.9]} 2. c4 {[%clk 0:03:00.2]}
2... e6 {[%clk 0:03:00.3]} 3. g3 {[%clk 0:03:00.4]} 3... c5 {[%clk 0:02:59.7]}
4. Nf3 {[%clk 0:02:58.2]} 4... cxd4 {[%clk 0:02:58.6]} 5. Nxd4 {[%clk
0:02:59.1]} 5... a6 {[%clk 0:02:59]} 6. Bg2 {[%clk 0:02:59.4]} 6... Qc7 {[%clk
0:02:59.5]} 7. Nc3 {[%clk 0:02:57.6]} 7... Qxc4 {[%clk 0:02:59.1]} 8. O-O {[%clk
0:02:56.5]} 8... Nc6 {[%clk 0:02:59.3]} 9. Nb3 {[%clk 0:02:51.6]} 9... h5 {[%clk
0:02:59]} 10. e4 {[%clk 0:02:42.9]} 10... h4 {[%clk 0:02:52]} 11. Re1 {[%clk
0:02:41.2]} 11... hxg3 {[%clk 0:02:51.6]} 12. hxg3 {[%clk 0:02:40.8]} 12... Ne5
{[%clk 0:02:37.2]} 13. Bf4 {[%clk 0:02:30.7]} 13... Nfg4 {[%clk 0:02:29.3]} 14.
Bf1 {[%clk 0:02:12.9]} 14... Qb4 {[%clk 0:02:24.7]} 15. Bg2 {[%clk 0:01:42.3]}
15... Qb6 {[%clk 0:02:01.1]} 16. Qd2 {[%clk 0:01:34]} 16... Nd3 {[%clk
0:01:59.5]} 17. Re2 {[%clk 0:01:28.9]} 17... Nde5 {[%clk 0:01:36.9]} 18. Rd1
{[%clk 0:01:17.2]} 18... d6 {[%clk 0:01:37.1]} 19. Qc2 {[%clk 0:00:54.5]} 19...
Bd7 {[%clk 0:01:35.3]} 20. a4 {[%clk 0:00:51.7]} 20... Rc8 {[%clk 0:01:35]} 21.
a5 {[%clk 0:00:47.6]} 21... Qa7 {[%clk 0:01:35.1]} 22. Nd4 {[%clk 0:00:44.6]}
22... Be7 {[%clk 0:01:31.8]} 23. Qb1 {[%clk 0:00:36.6]} 23... g5 {[%clk
0:01:29.1]} 24. Bc1 {[%clk 0:00:33.7]} 24... Rc4 {[%clk 0:01:22.2]} 25. Nc2
{[%clk 0:00:26.7]} 25... Qc5 {[%clk 0:01:13.6]} 26. Ne3 {[%clk 0:00:25.4]} 26...
Nxe3 {[%clk 0:01:12.4]} 27. Bxe3 {[%clk 0:00:24.8]} 27... Qxa5 {[%clk 0:01:13]}
28. f4 {[%clk 0:00:22]} 28... gxf4 {[%clk 0:01:12.9]} 29. gxf4 {[%clk
0:00:22.9]} 29... Ng4 {[%clk 0:01:13.4]} 30. Rd4 {[%clk 0:00:15.9]} 30... Nxe3
{[%clk 0:01:13]} 31. Qd3 {[%clk 0:00:13.4]} 31... Qc5 {[%clk 0:01:09.3]} 32. b4
{[%clk 0:00:10.3]} 32... Qxd4 {[%clk 0:01:09.2]} 0-1

[Event "Late-Titled-Tuesday-Blitz-April-23-2024"]
[Site "Chess.com"]
[Date "2024.04.23"]
[Round "1"]
[White "lamomiajunior"]
[Black "kleber2007"]
[Result "1-0"]
[WhiteElo "2749"]
[BlackElo "2438"]
[TimeControl "180+1"]
[EndTime "14:06:02 PDT"]
[Termination "lamomiajunior won by resignation"]

1. d4 {[%clk 0:03:00.9]} 1... d5 {[%clk 0:02:55.1]} 2. Nc3 {[%clk 0:03:01.2]}
2... Nf6 {[%clk 0:02:54.4]} 3. Bf4 {[%clk 0:03:01.8]} 3... c5 {[%clk 0:02:54.1]}
4. e4 {[%clk 0:03:00.1]} 4... Nxe4 {[%clk 0:02:50.3]} 5. Bb5+ {[%clk 0:02:59.9]}
5... Nc6 {[%clk 0:02:45.5]} 6. Nxe4 {[%clk 0:03:00.1]} 6... dxe4 {[%clk
0:02:46]} 7. Ne2 {[%clk 0:03:01]} 7... Bd7 {[%clk 0:02:29.1]} 8. dxc5 {[%clk
0:02:59.7]} 8... e6 {[%clk 0:02:12.4]} 9. Nc3 {[%clk 0:02:47.8]} 9... Bxc5
{[%clk 0:02:10]} 10. O-O {[%clk 0:02:45.8]} 10... O-O {[%clk 0:02:03.1]} 11.
Nxe4 {[%clk 0:02:45.5]} 11... Be7 {[%clk 0:02:01.9]} 12. Bd6 {[%clk 0:02:33.3]}
12... Bxd6 {[%clk 0:01:55.3]} 13. Qxd6 {[%clk 0:02:34.2]} 13... Qb6 {[%clk
0:01:52.3]} 14. Qc5 {[%clk 0:02:24.9]} 14... Rfd8 {[%clk 0:01:47.7]} 15. Qxb6
{[%clk 0:02:24.5]} 15... axb6 {[%clk 0:01:48.6]} 16. Rfd1 {[%clk 0:02:21.5]}
16... Ne5 {[%clk 0:01:46.5]} 17. Bxd7 {[%clk 0:02:17.6]} 17... Rxd7 {[%clk
0:01:46]} 18. Rxd7 {[%clk 0:02:14.3]} 18... Nxd7 {[%clk 0:01:46.9]} 19. a3
{[%clk 0:02:11.1]} 19... Nc5 {[%clk 0:01:42]} 20. Nxc5 {[%clk 0:01:54.3]} 20...
bxc5 {[%clk 0:01:42.9]} 21. Rd1 {[%clk 0:01:53.5]} 21... b5 {[%clk 0:01:37.8]}
22. Kf1 {[%clk 0:01:50.5]} 22... b4 {[%clk 0:01:34.1]} 23. axb4 {[%clk
0:01:50.7]} 23... cxb4 {[%clk 0:01:34.7]} 24. Rd4 {[%clk 0:01:51.3]} 24... Rb8
{[%clk 0:01:30.2]} 25. Ke2 {[%clk 0:01:51]} 25... g5 {[%clk 0:01:30]} 26. Kd3
{[%clk 0:01:51.3]} 26... Kg7 {[%clk 0:01:29.3]} 27. Kc4 {[%clk 0:01:51.6]} 27...
Kf6 {[%clk 0:01:26.5]} 28. Kb3 {[%clk 0:01:51.6]} 28... Rb5 {[%clk 0:01:24.1]}
29. Rxb4 {[%clk 0:01:50.9]} 29... Rf5 {[%clk 0:01:23.3]} 30. f3 {[%clk
0:01:51.2]} 30... Re5 {[%clk 0:01:23.2]} 31. h4 {[%clk 0:01:47.5]} 31... h6
{[%clk 0:01:20.2]} 32. hxg5+ {[%clk 0:01:45.3]} 32... hxg5 {[%clk 0:01:21.1]}
33. c4 {[%clk 0:01:33.8]} 33... Re2 {[%clk 0:01:15.1]} 34. c5 {[%clk 0:01:34.1]}
34... Ke7 {[%clk 0:01:08.1]} 35. Rb7+ {[%clk 0:01:33.4]} 35... Ke8 {[%clk
0:01:06]} 36. c6 {[%clk 0:01:31.5]} 36... Kd8 {[%clk 0:01:02.2]} 37. Rxf7 {[%clk
0:01:26.9]} 37... Rxg2 {[%clk 0:01:01.9]} 38. Kc3 {[%clk 0:01:27.2]} 38... Rg3
{[%clk 0:00:59.1]} 39. Kd4 {[%clk 0:01:24.1]} 39... g4 {[%clk 0:00:51.1]} 40.
fxg4 {[%clk 0:01:15.7]} 40... Rxg4+ {[%clk 0:00:52]} 41. Kc5 {[%clk 0:01:16.1]}
41... e5 {[%clk 0:00:51.8]} 42. b4 {[%clk 0:01:14.8]} 42... e4 {[%clk
0:00:49.9]} 43. Kb6 {[%clk 0:01:07.4]} 43... Rg6 {[%clk 0:00:43.8]} 44. Kb7
{[%clk 0:01:04]} 1-0

[Event "Late-Titled-Tuesday-Blitz-April-23-2024"]
[Site "Chess.com"]
[Date "2024.04.23"]
[Round "1"]
[White "WindWhistler11"]
[Black "Shankland"]
[Result "0-1"]
[WhiteElo "2531"]
[BlackElo "3060"]
[TimeControl "180+1"]
[EndTime "14:06:04 PDT"]
[Termination "Shankland won on time"]

1. Nf3 {[%clk 0:03:00.3]} 1... d5 {[%clk 0:02:58.5]} 2. c4 {[%clk 0:03:00.2]}
2... c6 {[%clk 0:02:57.8]} 3. e3 {[%clk 0:02:54.6]} 3... Nf6 {[%clk 0:02:57.1]}
4. b3 {[%clk 0:02:54.6]} 4... Bg4 {[%clk 0:02:55.1]} 5. Bb2 {[%clk 0:02:53.3]}
5... e6 {[%clk 0:02:55.3]} 6. Be2 {[%clk 0:02:51.7]} 6... Bd6 {[%clk 0:02:55.1]}
7. d3 {[%clk 0:02:51.4]} 7... O-O {[%clk 0:02:54.3]} 8. h3 {[%clk 0:02:49.2]}
8... Bh5 {[%clk 0:02:52.5]} 9. g4 {[%clk 0:02:46.2]} 9... Bg6 {[%clk 0:02:51.8]}
10. Nh4 {[%clk 0:02:46.7]} 10... Nbd7 {[%clk 0:02:45.2]} 11. Nxg6 {[%clk
0:02:37]} 11... hxg6 {[%clk 0:02:46.1]} 12. Nd2 {[%clk 0:02:25.7]} 12... e5
{[%clk 0:02:44.3]} 13. Qc2 {[%clk 0:02:20.2]} 13... a5 {[%clk 0:02:41.2]} 14. a3
{[%clk 0:02:02.7]} 14... Qe7 {[%clk 0:02:40.6]} 15. h4 {[%clk 0:01:40.9]} 15...
d4 {[%clk 0:02:36.6]} 16. g5 {[%clk 0:01:31.3]} 16... Nh5 {[%clk 0:02:32.7]} 17.
Ne4 {[%clk 0:01:25.7]} 17... Nc5 {[%clk 0:02:32.7]} 18. Nxd6 {[%clk 0:01:20]}
18... Qxd6 {[%clk 0:02:32.7]} 19. O-O-O {[%clk 0:01:13.2]} 19... Rad8 {[%clk
0:02:28.6]} 20. Kb1 {[%clk 0:01:12]} 20... Rfe8 {[%clk 0:02:24.1]} 21. Bxh5
{[%clk 0:01:06]} 21... gxh5 {[%clk 0:02:23.9]} 22. e4 {[%clk 0:01:02.1]} 22...
b5 {[%clk 0:02:20.2]} 23. Rc1 {[%clk 0:00:57.2]} 23... Rc8 {[%clk 0:02:02.4]}
24. Rhf1 {[%clk 0:00:47.2]} 24... Qe6 {[%clk 0:01:49.1]} 25. f4 {[%clk
0:00:42.5]} 25... Qh3 {[%clk 0:01:44.4]} 26. Rcd1 {[%clk 0:00:36.5]} 26... Rb8
{[%clk 0:01:37.8]} 27. cxb5 {[%clk 0:00:29.6]} 27... Rxb5 {[%clk 0:01:37.7]} 28.
a4 {[%clk 0:00:29.7]} 28... Rxb3 {[%clk 0:01:37.4]} 29. Qxc5 {[%clk 0:00:26.5]}
29... Reb8 {[%clk 0:01:37.4]} 30. Rf2 {[%clk 0:00:21.1]} 30... Rxd3 {[%clk
0:01:30.8]} 31. Rc1 {[%clk 0:00:15.7]} 31... Rc3 {[%clk 0:01:29.3]} 32. Qxe5
{[%clk 0:00:11.9]} 32... Qd3+ {[%clk 0:01:29.1]} 33. Ka2 {[%clk 0:00:10.5]}
33... Ra3+ {[%clk 0:01:28.4]} 0-1